bitfinex/quotes_BTCUSD_20250618
["timestamp","ask_amount","ask_price","bid_price","bid_amount"]
[1750258084219,5.36871776,105170.0,105160.0,0.04192028]
[1750258084437,5.36871776,105170.0,105160.0,0.01092272]
[1750258084438,5.39951776,105170.0,105160.0,0.01092272]
[1750258084650,5.42794679,105170.0,105160.0,0.01092272]
[1750258085342,5.59154679,105170.0,105160.0,0.0021]
[1750258085553,5.61644679,105170.0,105160.0,0.0021]
[1750258085777,5.61644679,105170.0,105160.0,0.0001]
[1750258085998,5.71259601,105170.0,105160.0,0.0001]
[1750258086493,5.71459601,105170.0,105160.0,0.0001]
[1750258087605,5.61844679,105170.0,105160.0,0.0001]
[1750258088120,5.59454679,105170.0,105160.0,0.0001]
[1750258088328,5.56611776,105170.0,105160.0,0.0001]
[1750258089178,5.61944679,105170.0,105160.0,0.0001]
[1750258090256,5.64803179,105170.0,105160.0,0.0001]
[1750258090942,5.74418101,105170.0,105160.0,0.0001]
[1750258091809,5.64803179,105170.0,105160.0,0.0001]
[1750258092812,5.44835527,105170.0,105160.0,0.0001]
[1750258093023,5.63852356,105170.0,105160.0,0.0001]
[1750258093890,5.61009453,105170.0,105160.0,0.0001]
[1750258094365,5.24969551,105160.0,105150.0,0.0001]
[1750258094563,5.40153675,105160.0,105150.0,0.0001]
[1750258094785,5.56505675,105160.0,105150.0,0.0001]
[1750258096202,5.57005675,105160.0,105150.0,0.0001]
[1750258097312,5.57005675,105160.0,105140.0,0.0331]
[1750258097313,0.1997145,105150.0,105140.0,0.0331]
[1750258097499,5.34595626,105150.0,105140.0,0.0331]
[1750258097752,5.36388321,105150.0,105140.0,0.0331]
[1750258098639,5.36435534,105150.0,105140.0,0.0331]
[1750258098883,5.37386529,105150.0,105140.0,0.2631335]
[1750258099163,5.36435534,105150.0,105140.0,0.0634]
[1750258099378,5.36435534,105150.0,105140.0,0.0331]
[1750258099599,5.38707579,105150.0,105140.0,0.0331]
[1750258099790,5.38707605,105150.0,105140.0,0.0331]
[1750258100023,5.36435534,105150.0,105140.0,0.0331]
[1750258100255,5.38707584,105150.0,105140.0,0.0331]
[1750258100729,5.38707584,105150.0,105140.0,0.0001]
[1750258100979,5.2497335,105140.0,105130.0,0.03136]
[1750258101213,5.2497525,105130.0,105120.0,2.00336749]
[1750258101440,5.36871808,105130.0,105120.0,2.00336749]
[1750258101687,5.34599426,105130.0,105120.0,2.00336749]
[1750258102142,5.25926426,105130.0,105120.0,2.03646749]
[1750258102578,5.26226426,105130.0,105120.0,2.03646749]
[1750258102838,5.26226426,105130.0,105120.0,2.22672624]
[1750258103082,5.26226426,105130.0,105120.0,2.2552644]
[1750258103302,0.4237762,105130.0,105120.0,2.2552644]
[1750258103526,0.4237762,105130.0,105120.0,2.26477688]
[1750258103746,0.22402251,105130.0,105120.0,2.43772864]
[1750258103975,0.2335339,105130.0,105120.0,2.43772864]
[1750258104201,0.22402251,105130.0,105120.0,2.46822864]
[1750258104675,0.22402269,105130.0,105120.0,2.46822864]
[1750258104902,0.03176593,105130.0,105120.0,2.46822864]
[1750258105359,0.02876593,105130.0,105120.0,2.46822864]
[1750258105560,0.03927732,105130.0,105120.0,2.46822864]
[1750258105814,0.001,105130.0,105120.0,2.46822864]
[1750258106045,0.0105113,105130.0,105120.0,2.46822864]
[1750258106296,0.001,105130.0,105120.0,2.46822864]
[1750258106519,0.03904594,105130.0,105120.0,2.46822864]
[1750258106754,0.02953427,105130.0,105120.0,2.46822864]
[1750258107223,0.03904594,105130.0,105120.0,2.46822864]
[1750258107439,0.02953427,105130.0,105120.0,2.46822864]
[1750258107669,0.03904612,105130.0,105120.0,2.51326864]
[1750258107890,0.03904603,105130.0,105120.0,2.51326864]
[1750258108119,0.23904612,105130.0,105120.0,2.51326864]
[1750258108539,0.22953427,105130.0,105120.0,2.51326864]
[1750258109013,0.02953436,105130.0,105120.0,2.51326864]
[1750258109488,0.05842448,105130.0,105120.0,2.51326864]
[1750258110376,0.25842448,105130.0,105120.0,2.51326864]
[1750258110654,0.4676891,105130.0,105120.0,2.51326864]
[1750258110890,5.29866641,105130.0,105120.0,2.26673908]
[1750258111112,5.29866641,105130.0,105120.0,2.43965174]
[1750258111803,5.31192023,105130.0,105120.0,2.43013908]
[1750258112710,5.30240829,105130.0,105120.0,2.43013908]
[1750258113477,5.29289626,105130.0,105120.0,2.23036749]
[1750258114300,5.29289626,105130.0,105120.0,2.19722749]
[1750258116012,5.32132529,105130.0,105120.0,2.03386749]
[1750258116218,5.32132529,105130.0,105120.0,2.19722749]
[1750258117086,5.32132529,105130.0,105120.0,2.03386749]
[1750258117292,5.41747451,105130.0,105120.0,2.00336749]
[1750258117533,5.41756705,105130.0,105120.0,2.00336749]
[1750258117766,5.41756705,105130.0,105120.0,1.95574991]
[1750258117767,5.38913802,105130.0,105120.0,1.95574991]
[1750258118283,5.41756705,105130.0,105120.0,1.95574991]
[1750258118391,5.38913802,105130.0,105120.0,1.91105991]
[1750258118633,5.38913802,105130.0,105120.0,1.88568991]
[1750258118873,5.42213802,105130.0,105120.0,1.88568991]
[1750258119118,5.61388705,105130.0,105120.0,1.76689855]
[1750258119354,5.63878705,105130.0,105120.0,1.67166339]
[1750258119838,5.63878705,105130.0,105120.0,1.6546934]
[1750258120061,5.7023279,105130.0,105120.0,1.59793582]
[1750258120283,5.7073279,105130.0,105120.0,1.59414582]
[1750258120503,5.7073279,105130.0,105120.0,1.58449582]
[1750258120744,5.7073279,105130.0,105120.0,1.33531833]
[1750258120745,5.77695,105130.0,105120.0,1.33531833]
[1750258120959,5.78646502,105130.0,105120.0,1.33531833]
[1750258121175,5.8053355,105130.0,105120.0,1.29834994]
[1750258121388,5.8053355,105130.0,105120.0,1.27214059]
[1750258121605,5.8053355,105130.0,105120.0,1.26261708]
[1750258121823,5.78349309,105130.0,105120.0,1.07114675]
[1750258122056,5.78449309,105130.0,105120.0,1.00594566]
[1750258122295,5.88469309,105130.0,105120.0,0.98043236]
[1750258122511,5.88469309,105130.0,105120.0,0.91411478]
[1750258122723,5.9095355,105130.0,105120.0,0.90169127]
[1750258122937,5.9095355,105130.0,105120.0,0.84969127]
[1750258123153,5.9095355,105130.0,105120.0,0.84016429]
[1750258123384,5.9095355,105130.0,105120.0,0.69439075]
[1750258123600,5.55174763,105130.0,105120.0,0.64319933]
[1750258123817,5.76888256,105130.0,105120.0,0.59556442]
[1750258124029,5.7877534,105130.0,105120.0,0.53840253]
[1750258124241,5.84805095,105130.0,105120.0,0.50404555]
[1750258124458,5.81010763,105130.0,105120.0,0.18386051]
[1750258124795,5.95625685,105130.0,105120.0,0.04288353]
[1750258125106,5.95625685,105130.0,105110.0,0.0001]
[1750258125330,0.52091851,105120.0,105110.0,0.0001]
[1750258125558,0.52091851,105120.0,105070.0,0.00016]
[1750258125559,0.19984754,105080.0,105070.0,0.00016]
[1750258125777,5.3460893,105080.0,105070.0,0.00016]
[1750258126012,5.46500401,105080.0,105070.0,0.00016]
[1750258126481,0.19986657,105070.0,105060.0,0.0307]
[1750258126697,5.24986657,105070.0,105060.0,0.03955864]
[1750258126914,5.27310361,105070.0,105060.0,0.23944441]
[1750258127131,5.27310361,105070.0,105060.0,0.0307]
[1750258127357,5.48827731,105070.0,105030.0,0.0329]
[1750258127586,5.2689631,105040.0,105030.0,0.2417074]
[1750258127812,5.25944356,105040.0,105030.0,0.2321865]
[1750258128031,5.28205055,105040.0,105030.0,0.04176472]
[1750258128263,5.35891637,105040.0,105030.0,0.04176472]
[1750258128785,5.35891637,105040.0,105030.0,0.065]
[1750258129016,5.45515813,105040.0,105030.0,0.07384078]
[1750258129506,5.28205055,105040.0,105030.0,0.25542178]
[1750258129739,5.28205055,105040.0,105030.0,0.065]
[1750258129984,5.28305055,105040.0,105030.0,0.066]
[1750258130241,5.40830563,105040.0,105030.0,0.0392]
[1750258130524,5.40830563,105040.0,105000.0,0.01]
[1750258130525,5.25950321,105010.0,105000.0,0.01]
[1750258130757,5.49294321,105010.0,105000.0,0.01884448]
[1750258131001,0.02858067,104960.0,104950.0,0.27098673]
[1750258131223,0.03810873,104960.0,104950.0,0.3388894]
[1750258131463,0.0285813,104960.0,104950.0,0.3579463]
[1750258131685,0.00952662,104960.0,104950.0,0.35794567]
[1750258131909,5.25952498,104980.0,104970.0,0.25110919]
[1750258132136,0.29934122,104980.0,104970.0,0.30125008]
[1750258132366,0.35187623,104980.0,104970.0,0.29172419]
[1750258132613,0.35187623,104980.0,104970.0,0.27267196]
[1750258132614,5.44060502,104980.0,104970.0,0.27267196]
[1750258132831,5.10821125,104980.0,104970.0,0.27267196]
[1750258133060,5.10821125,104980.0,104970.0,0.28290901]
[1750258133061,5.09868544,104980.0,104970.0,0.28290901]
[1750258133293,0.03916046,104980.0,104970.0,0.48049582]
[1750258133518,0.02963557,104980.0,104970.0,0.4717149]
[1750258133739,0.00047068,104980.0,104970.0,0.8117149]
[1750258133979,0.00047068,104980.0,104970.0,0.8696349]
[1750258134215,0.00147068,104980.0,104970.0,0.96587666]
[1750258134435,0.02856778,105010.0,105000.0,0.28224651]
[1750258134436,0.22856669,105010.0,105000.0,0.28224651]
[1750258134655,0.20952127,105020.0,105000.0,0.44358083]
[1750258134877,0.21904272,105020.0,105010.0,0.27270339]
[1750258135105,0.22856462,105020.0,105010.0,0.28222565]
[1750258135328,0.22856462,105020.0,105010.0,0.50822339]
[1750258135542,0.42852643,105020.0,105010.0,0.49870086]
[1750258135764,0.41900516,105020.0,105010.0,0.51810621]
[1750258135987,0.47995324,105020.0,105010.0,0.51810621]
[1750258136197,0.41900516,105020.0,105010.0,0.51810621]
[1750258136441,0.42852715,105020.0,105010.0,0.52762874]
[1750258136663,0.41900561,105020.0,105010.0,0.52762874]
[1750258136890,0.20952145,105020.0,105010.0,0.537151]
[1750258137104,0.2285648,105020.0,105010.0,0.52762874]
[1750258137339,0.23908598,105020.0,105010.0,0.52862837]
[1750258137558,0.24960842,105020.0,105010.0,0.54115072]
[1750258137821,0.24960896,105020.0,105010.0,0.54115072]
[1750258138033,0.2745741,105020.0,105010.0,0.52210593]
[1750258138259,0.42100561,105020.0,105010.0,0.52210593]
[1750258138484,0.2305657,105020.0,105010.0,0.54115054]
[1750258138706,0.2305657,105020.0,105010.0,0.52210593]
[1750258138929,0.002,105020.0,105010.0,0.62786995]
[1750258139689,0.01152117,105020.0,105010.0,0.62786995]
[1750258139927,0.002,105020.0,105010.0,0.62786995]
[1750258140149,0.01152117,105020.0,105010.0,0.62786995]
[1750258140384,0.01152127,105020.0,105010.0,0.62786995]
[1750258140618,0.02696039,105020.0,105010.0,0.62786995]
[1750258140836,0.01152117,105020.0,105010.0,0.62786995]
[1750258141050,0.002,105020.0,105010.0,0.62786995]
[1750258141994,0.01152127,105020.0,105010.0,0.62786995]
[1750258142226,0.21148326,105020.0,105010.0,0.49353805]
[1750258142457,0.21148326,105020.0,105010.0,0.51258358]
[1750258142683,0.25167395,105020.0,105010.0,0.51258358]
[1750258142911,0.24215241,105020.0,105010.0,0.50306095]
[1750258143133,5.29143735,105020.0,105010.0,0.27514]
[1750258143580,5.29143735,105020.0,105010.0,0.46559805]
[1750258143804,5.29143735,105020.0,105010.0,0.21854]
[1750258144302,5.29143735,105020.0,105010.0,0.37669805]
[1750258144529,5.29143735,105020.0,105010.0,0.41732095]
[1750258144746,5.07032829,105020.0,105010.0,0.47668837]
[1750258144961,5.098893,105020.0,105010.0,0.47668837]
[1750258145181,5.28933291,105020.0,105010.0,0.45764339]
[1750258145435,5.28904786,105020.0,105010.0,0.26588086]
[1750258145657,5.27952605,105020.0,105010.0,0.26588086]
[1750258145873,5.36615382,105020.0,105010.0,0.41716095]
[1750258146088,5.35734707,105020.0,105010.0,0.42668376]
[1750258146302,5.34782535,105020.0,105010.0,0.41716095]
[1750258146524,5.35664706,105020.0,105010.0,0.42668376]
[1750258146732,5.35664706,105020.0,105010.0,0.44572892]
[1750258146733,5.26049784,105020.0,105010.0,0.44572892]
[1750258146947,5.08910155,105020.0,105010.0,0.44572892]
[1750258147169,5.27954465,105020.0,105010.0,0.43620648]
[1750258147601,5.27954481,105020.0,105010.0,0.43620648]
[1750258147816,5.07958291,105020.0,105010.0,0.47870911]
[1750258148061,5.0891037,105020.0,105010.0,0.488231]
[1750258148281,5.0891037,105020.0,105010.0,0.47870874]
[1750258148501,5.38521473,105020.0,105010.0,0.47870874]
[1750258148717,5.0986256,105020.0,105010.0,0.47870874]
[1750258148935,5.07006026,105020.0,105010.0,0.488231]
[1750258149181,0.0391589,105020.0,105010.0,0.488231]
[1750258149408,0.02006007,105020.0,105010.0,0.488231]
[1750258149624,0.02075676,105020.0,105010.0,0.488231]
[1750258149841,0.01123549,105020.0,105010.0,0.488231]
[1750258150066,0.03027848,105020.0,105010.0,0.488231]
[1750258150294,0.02959651,105020.0,105010.0,0.488231]
[1750258150568,0.23911805,105020.0,105010.0,0.488231]
[1750258150793,0.27540778,105020.0,105010.0,0.488231]
[1750258151028,0.27540778,105020.0,105010.0,0.5059242]
[1750258151264,0.46584905,105020.0,105010.0,0.49640194]
[1750258151499,0.46584905,105020.0,105010.0,0.47735669]
[1750258151500,0.45632751,105020.0,105010.0,0.47735669]
[1750258151730,0.44680552,105020.0,105010.0,0.49641618]
[1750258151992,0.45632751,105020.0,105010.0,0.0857079]
[1750258152244,5.2968057,105020.0,105010.0,0.2353729]
[1750258152476,5.38569675,105020.0,105010.0,0.2271829]
[1750258152685,5.35742026,105020.0,105010.0,0.21766]
[1750258152899,5.41423479,105020.0,105010.0,0.004]
[1750258153193,5.54383589,105020.0,105010.0,0.004]
[1750258153428,5.50591112,105020.0,105010.0,0.004]
[1750258153673,0.19998077,105010.0,105000.0,0.18250147]
[1750258153929,5.43446689,105010.0,105000.0,0.18250147]
[1750258154801,5.43446689,105010.0,105000.0,0.00014147]
[1750258155024,5.61912717,105010.0,105000.0,0.18250147]
[1750258155240,5.61912717,105010.0,105000.0,0.00714147]
[1750258155241,5.65302717,105010.0,105000.0,0.00714147]
[1750258155454,0.19999981,105000.0,104990.0,0.18232]
[1750258155668,0.41906702,104990.0,104980.0,0.66992217]
[1750258155887,5.37651461,104990.0,104980.0,0.67944715]
[1750258156106,5.38603932,104990.0,104980.0,0.67944715]
[1750258156317,5.38603932,104990.0,104980.0,0.67944724]
[1750258156533,5.34806098,104990.0,104980.0,0.67944724]
[1750258156987,5.34806098,104990.0,104980.0,0.66992217]
[1750258157228,5.40630063,104990.0,104980.0,0.660397]
[1750258157448,5.37772686,104990.0,104980.0,0.26190171]
[1750258157674,5.37872686,104990.0,104980.0,0.44474171]
[1750258157892,5.37872686,104990.0,104980.0,0.63525418]
[1750258158113,5.43563577,104990.0,104980.0,0.45426733]
[1750258158348,5.43563577,104990.0,104980.0,0.00014171]
[1750258158349,5.56341153,104990.0,104980.0,0.00014171]
[1750258158587,5.53010148,104990.0,104980.0,0.00014171]
[1750258158804,5.49398756,104990.0,104980.0,0.03884171]
[1750258159018,5.49498756,104990.0,104980.0,0.22160171]
[1750258159229,5.49398756,104990.0,104980.0,0.03284171]
[1750258159441,5.49398756,104990.0,104980.0,0.21564171]
[1750258159665,5.49298756,104990.0,104980.0,0.21564171]
[1750258159880,5.4929847,104990.0,104980.0,0.21564171]
[1750258160098,5.4939847,104990.0,104980.0,0.18294171]
[1750258161201,5.4959847,104990.0,104980.0,0.18394171]
[1750258161622,5.43907579,104990.0,104980.0,0.18394171]
[1750258162290,5.49602273,104990.0,104980.0,0.18394171]
[1750258162501,5.43907579,104990.0,104980.0,0.18394171]
[1750258162712,5.43907579,104990.0,104980.0,0.18370171]
[1750258162932,5.49602387,104990.0,104980.0,0.18370171]
[1750258163594,5.52465487,104990.0,104980.0,0.18370171]
[1750258163805,5.52465487,104990.0,104980.0,0.00114171]
[1750258164260,5.53718005,104990.0,104980.0,0.00114171]
[1750258164479,0.21910938,104970.0,104960.0,0.24150355]
[1750258164718,0.28864053,104970.0,104960.0,0.23244689]
[1750258164965,0.42099621,104970.0,104960.0,0.00057068]
[1750258165186,0.39433395,104970.0,104960.0,0.00057068]
[1750258165634,0.09803504,104970.0,104960.0,0.27407387]
[1750258165852,0.30861808,104970.0,104960.0,0.27707387]
[1750258166083,0.30861808,104970.0,104940.0,0.20011358]
[1750258166084,0.2191506,104950.0,104940.0,0.20011358]
[1750258166309,0.0985832,104950.0,104940.0,0.51911108]
[1750258166531,0.27014134,104950.0,104940.0,0.51911108]
[1750258166746,0.36082203,104950.0,104940.0,0.51911108]
[1750258166959,0.37987808,104950.0,104940.0,0.51911108]
[1750258167182,0.37987808,104950.0,104940.0,0.50954247]
[1750258167183,0.57044564,104950.0,104940.0,0.50954247]
[1750258167397,0.37997398,104950.0,104940.0,0.51907127]
[1750258167619,0.37044618,104950.0,104940.0,0.27034247]
[1750258167847,5.45020141,104950.0,104940.0,0.0303]
[1750258168065,0.20011434,104940.0,104930.0,0.4512575]
[1750258168298,0.29865955,104940.0,104930.0,0.47984679]
[1750258168559,0.30807446,104940.0,104930.0,0.47984679]
[1750258168789,0.30807392,104940.0,104930.0,0.47984679]
[1750258169018,0.37272349,104940.0,104930.0,0.46078748]
[1750258169239,0.33481313,104940.0,104930.0,0.47031737]
[1750258169455,0.46217918,104940.0,104930.0,0.03162418]
[1750258169675,0.12227741,104940.0,104930.0,0.27428748]
[1750258169955,0.08436705,104940.0,104930.0,0.29334679]
[1750258170172,0.05895097,104940.0,104930.0,0.64162855]
[1750258170391,0.05995097,104940.0,104930.0,0.64162855]
[1750258170830,0.0694794,104940.0,104930.0,0.64162855]
[1750258171049,0.0694794,104940.0,104930.0,0.03082418]
[1750258171050,5.4053752,104940.0,104930.0,0.03082418]
[1750258171272,5.47170164,104940.0,104930.0,0.2309575]
[1750258171502,5.47070164,104940.0,104930.0,0.24048748]
[1750258171733,5.54779317,104940.0,104930.0,0.06252418]
[1750258171954,5.54379317,104940.0,104930.0,0.06252418]
[1750258172169,5.54479317,104940.0,104930.0,0.06252418]
[1750258172395,5.54479317,104940.0,104930.0,0.22162418]
[1750258172640,5.54379317,104940.0,104930.0,0.22162418]
[1750258172861,5.54479317,104940.0,104930.0,0.19112418]
[1750258173080,5.51637709,104940.0,104930.0,0.00032418]
[1750258173542,5.44112489,104940.0,104930.0,0.00032418]
[1750258173774,5.34597567,104940.0,104930.0,0.20045759]
[1750258174001,5.34597567,104940.0,104930.0,0.42497759]
[1750258174227,5.37435652,104940.0,104930.0,0.43450766]
[1750258174452,0.30538969,104940.0,104930.0,0.48446697]
[1750258174927,0.32444756,104940.0,104930.0,0.48446697]
[1750258175128,0.35695625,104940.0,104930.0,0.26527434]
[1750258175352,0.34742718,104940.0,104930.0,0.23437434]
[1750258175570,0.28644607,104940.0,104930.0,0.43430766]
[1750258175804,0.28644607,104940.0,104930.0,0.44383755]
[1750258176019,0.30550421,104940.0,104930.0,0.44383755]
[1750258176325,5.57865048,104940.0,104930.0,0.00032418]
[1750258176550,5.25968291,104920.0,104910.0,0.40897897]
[1750258176784,0.24175065,104920.0,104910.0,0.49114192]
[1750258177021,0.25128144,104920.0,104910.0,0.55498192]
[1750258177261,0.24175074,104920.0,104910.0,0.55498192]
[1750258177537,0.08924072,104930.0,104920.0,0.21921353]
[1750258177778,0.10830756,104930.0,104920.0,0.28341353]
[1750258178004,5.25968291,104920.0,104910.0,0.0157675]
[1750258178232,5.34858974,104920.0,104910.0,0.0157675]
[1750258178659,5.32021408,104920.0,104910.0,0.0157675]
[1750258178880,5.51260506,104920.0,104910.0,0.0157675]
[1750258179103,5.57235788,104920.0,104910.0,0.0157675]
[1750258179321,5.59975788,104920.0,104910.0,0.0157675]
[1750258179537,5.59975067,104920.0,104910.0,0.0157675]
[1750258179751,5.63498107,104920.0,104910.0,0.0157675]
[1750258179963,5.65052192,104920.0,104910.0,0.0157675]
[1750258180178,5.64429491,104920.0,104910.0,0.0157675]
[1750258180410,5.61923514,104920.0,104910.0,0.0157675]
[1750258180625,5.50343077,104920.0,104910.0,0.0157675]
[1750258181956,5.50126444,104920.0,104910.0,0.0157675]
[1750258182177,5.50926444,104920.0,104910.0,0.0157675]
[1750258182405,5.3022782,104920.0,104910.0,0.25847058]
[1750258182643,5.38567122,104920.0,104910.0,0.48105067]
[1750258182855,5.37614088,104920.0,104910.0,0.48105067]
[1750258183084,5.37614088,104920.0,104910.0,0.49058228]
[1750258183304,5.44678843,104920.0,104910.0,0.49058228]
[1750258183527,5.4563195,104920.0,104910.0,0.5001138]
[1750258183741,5.4563195,104920.0,104910.0,0.48105067]
[1750258183993,5.44678907,104920.0,104910.0,0.48105067]
[1750258184438,5.42772739,104920.0,104910.0,0.44081906]
[1750258184662,5.42772739,104920.0,104910.0,0.40781906]
[1750258184875,5.42772739,104920.0,104910.0,0.41735094]
[1750258185084,5.42772739,104920.0,104910.0,0.45035094]
[1750258185326,5.42772739,104920.0,104910.0,0.45988273]
[1750258185554,5.42772739,104920.0,104910.0,0.46941443]
[1750258185774,5.24663676,104920.0,104910.0,0.4789455]
[1750258185999,5.17598921,104920.0,104910.0,0.47894496]
[1750258186230,5.19505052,104920.0,104910.0,0.50964496]
[1750258186464,5.38567249,104920.0,104910.0,0.50011362]
[1750258186950,5.19505107,104920.0,104910.0,0.50964496]
[1750258187172,5.38567249,104920.0,104910.0,0.50964496]
[1750258187404,5.48182171,104920.0,104910.0,0.50011362]
[1750258187619,5.48182171,104920.0,104910.0,0.49058219]
[1750258187845,5.27213788,104920.0,104910.0,0.50011371]
[1750258188075,5.27213788,104920.0,104910.0,0.57240505]
[1750258188076,0.10692735,104920.0,104910.0,0.57240505]
[1750258188302,0.056,104920.0,104910.0,0.66864681]
[1750258189424,0.055,104920.0,104910.0,0.66864681]
[1750258189637,0.05,104920.0,104910.0,0.66864681]
[1750258189854,0.053,104920.0,104910.0,0.66864681]
[1750258190078,0.051,104920.0,104910.0,0.66864681]
[1750258190313,0.05,104920.0,104910.0,0.66864681]
[1750258190535,0.052,104920.0,104910.0,0.66864681]
[1750258190993,0.052,104920.0,104910.0,0.89764681]
[1750258191684,0.052,104920.0,104910.0,0.89864681]
[1750258191905,0.053,104920.0,104910.0,0.89864681]
[1750258194567,0.053,104920.0,104910.0,0.64400681]
[1750258194786,0.053,104920.0,104910.0,0.89496681]
[1750258196754,0.003,104920.0,104910.0,0.89496681]
[1750258198760,0.003,104920.0,104910.0,0.64400681]
[1750258198969,0.003,104920.0,104910.0,0.89468681]
[1750258200704,0.003,104920.0,104910.0,0.90922766]
[1750258203997,0.003,104920.0,104910.0,0.37688064]
[1750258204234,0.01253025,104920.0,104910.0,0.61188359]
[1750258204474,0.02206059,104920.0,104910.0,0.51564183]
[1750258204698,0.0315912,104920.0,104910.0,0.51564183]
[1750258204926,0.04112208,104920.0,104910.0,0.26900183]
[1750258205153,0.0315912,104920.0,104910.0,0.51564183]
[1750258205381,0.0305912,104920.0,104910.0,0.51464183]
[1750258205592,0.0411219,104920.0,104910.0,0.48164183]
[1750258205820,0.05065269,104920.0,104910.0,0.48164183]
[1750258206337,0.0391219,104920.0,104910.0,0.48164183]
[1750258206790,0.01253043,104920.0,104910.0,0.51424183]
[1750258207018,0.21253061,104920.0,104910.0,0.51412183]
[1750258207244,0.21253043,104920.0,104910.0,0.51364183]
[1750258207700,0.203,104920.0,104910.0,0.51208183]
[1750258207926,0.21253034,104920.0,104910.0,0.26604183]
[1750258208151,0.21253034,104920.0,104910.0,0.32572183]
[1750258208375,0.203,104920.0,104910.0,0.51184183]
[1750258208647,0.203,104920.0,104910.0,0.63818359]
[1750258209094,0.21253025,104920.0,104910.0,0.63818359]
[1750258209326,0.22206059,104920.0,104910.0,0.45206359]
[1750258209581,0.23159111,104920.0,104910.0,0.63790359]
[1750258209815,0.23163111,104920.0,104910.0,0.32572183]
[1750258210041,0.25069314,104920.0,104910.0,0.47880183]
[1750258210453,0.25069314,104920.0,104910.0,0.29312183]
[1750258210701,0.30249512,104920.0,104910.0,0.47880183]
[1750258210923,0.23163147,104920.0,104910.0,0.47880183]
[1750258211162,0.23163147,104920.0,104910.0,0.29312183]
[1750258211386,0.22210077,104920.0,104910.0,0.47868183]
[1750258211828,0.24116199,104920.0,104910.0,0.47868183]
[1750258212054,0.24116199,104920.0,104910.0,0.23344183]
[1750258212274,0.29998893,104920.0,104910.0,0.29312183]
[1750258212509,0.24116199,104920.0,104910.0,0.47820183]
[1750258212739,0.23163129,104920.0,104910.0,0.47820183]
[1750258212961,0.25069278,104920.0,104910.0,0.47820183]
[1750258213188,0.2411619,104920.0,104910.0,0.47820183]
[1750258213409,0.28229278,104920.0,104910.0,0.23344183]
[1750258213647,0.23163156,104920.0,104910.0,0.47796183]
[1750258213892,0.21257034,104920.0,104910.0,0.23344183]
[1750258214120,0.21257034,104920.0,104910.0,0.47796183]
[1750258214358,0.01906086,104920.0,104910.0,0.47796183]
[1750258214581,0.21906086,104920.0,104910.0,0.47796183]
[1750258214812,0.2,104920.0,104910.0,0.47796183]
[1750258215059,0.30921717,104930.0,104920.0,0.20968291]
[1750258215285,5.21656617,104930.0,104920.0,0.20968291]
[1750258215518,5.21656617,104930.0,104920.0,0.21921343]
[1750258215749,4.94970949,104930.0,104920.0,0.22874386]
[1750258215963,4.95923947,104930.0,104920.0,0.22874386]
[1750258216675,5.15937279,104930.0,104920.0,0.22874386]
[1750258216913,5.16890295,104930.0,104920.0,0.22874386]
[1750258217138,4.94017933,104930.0,104920.0,0.26184386]
[1750258217362,4.93740803,104930.0,104920.0,0.26284386]
[1750258217613,5.15007133,104930.0,104920.0,0.2021523]
[1750258217833,5.36346919,104930.0,104920.0,0.002]
[1750258218077,5.45961841,104930.0,104920.0,0.002]
[1750258218296,5.42813574,104930.0,104920.0,0.002]
[1750258220570,5.45651415,104930.0,104920.0,0.002]
[1750258220787,5.42813574,104930.0,104920.0,0.002]
[1750258221249,5.30290544,104930.0,104920.0,0.002]
[1750258221523,5.14436322,104930.0,104920.0,0.39488347]
[1750258221715,5.1348337,104930.0,104920.0,0.39488347]
[1750258221961,5.11199288,104930.0,104920.0,0.39488347]
[1750258222200,5.11199288,104930.0,104920.0,0.41394496]
[1750258222462,4.91185956,104930.0,104920.0,0.45387539]
[1750258222688,0.23309921,104930.0,104920.0,0.48667539]
[1750258222900,0.22356942,104930.0,104920.0,0.48667539]
[1750258223346,0.20451056,104930.0,104920.0,0.48667539]
[1750258223576,0.00451056,104930.0,104920.0,0.48667539]
[1750258223806,0.02356978,104930.0,104920.0,0.48667539]
[1750258224017,0.12749475,104940.0,104930.0,0.19060325]
[1750258224242,5.02154496,104940.0,104930.0,0.21933513]
[1750258224463,5.03107421,104940.0,104930.0,0.23197527]
[1750258224679,5.05390276,104940.0,104930.0,0.00014186]
[1750258224896,5.15005198,104940.0,104930.0,0.00014186]
[1750258225330,5.05390276,104940.0,104930.0,0.19074511]
[1750258225551,5.05990276,104940.0,104930.0,0.00214186]
[1750258225767,5.09273465,104940.0,104930.0,0.00214186]
[1750258225975,5.09273465,104940.0,104930.0,0.18470186]
[1750258226163,5.09273465,104940.0,104930.0,0.37530511]
[1750258226425,5.1793548,104940.0,104930.0,0.18442186]
[1750258226639,5.1793548,104940.0,104930.0,0.37502511]
[1750258226856,5.08320558,104940.0,104930.0,0.38455527]
[1750258227067,5.08320558,104940.0,104930.0,0.37502511]
[1750258227271,5.08320558,104940.0,104930.0,0.38455518]
[1750258227488,4.97853842,104940.0,104930.0,0.43631449]
[1750258227741,0.04836041,104940.0,104930.0,0.46871449]
[1750258227961,0.06741828,104940.0,104930.0,0.46871449]
[1750258228167,4.97476728,104940.0,104930.0,0.46871449]
[1750258228384,5.17488153,104940.0,104930.0,0.43631486]
[1750258228569,5.17488153,104940.0,104930.0,0.45537417]
[1750258228786,5.17488153,104940.0,104930.0,0.27309417]
[1750258229055,4.97476728,104940.0,104930.0,0.51241362]
[1750258229271,0.26741828,104940.0,104930.0,0.51241362]
[1750258230430,0.25788921,104940.0,104930.0,0.51241362]
[1750258230654,0.26741828,104940.0,104930.0,0.51241362]
[1750258232085,0.25788921,104940.0,104930.0,0.51241362]
[1750258232546,0.26741819,104940.0,104930.0,0.51241362]
[1750258232770,0.27694726,104940.0,104930.0,0.51241362]
[1750258233018,0.46753235,104940.0,104930.0,0.51241362]
[1750258233249,0.28647642,104940.0,104930.0,0.51241362]
[1750258233477,0.25788921,104940.0,104930.0,0.51241362]
[1750258233704,0.26741819,104940.0,104930.0,0.51241362]
[1750258234204,0.27694726,104940.0,104930.0,0.51241362]
[1750258234426,0.49990493,104940.0,104930.0,0.5028841]
[1750258235106,0.49990493,104940.0,104930.0,0.51241362]
[1750258235331,0.29979059,104940.0,104930.0,0.51241362]
[1750258235578,0.29026152,104940.0,104930.0,0.51241362]
[1750258235800,0.29026152,104940.0,104930.0,0.54451362]
[1750258236038,0.26741819,104940.0,104930.0,0.54451362]
[1750258236253,0.25788921,104940.0,104930.0,0.54451362]
[1750258236480,0.26741828,104940.0,104930.0,0.54451362]
[1750258236783,0.26741819,104940.0,104930.0,0.54451362]
[1750258237001,0.27694726,104940.0,104930.0,0.54451362]
[1750258237215,0.26741819,104940.0,104930.0,0.54451362]
[1750258237427,0.25788921,104940.0,104930.0,0.54451362]
[1750258237654,0.26741819,104940.0,104930.0,0.54451362]
[1750258238332,0.27694726,104940.0,104930.0,0.54451362]
[1750258238592,0.26741819,104940.0,104930.0,0.54451362]
[1750258239080,5.17488144,104940.0,104930.0,0.54451362]
[1750258239303,5.17488144,104940.0,104930.0,0.47053527]